bitfinex/quotes_ETHUSD_20220123
["timestamp","ask_amount","ask_price","bid_price","bid_amount"]
[1642930578101,1.1728,2545.2,2544.6,1.11182145]
[1642930578308,1.45141226,2545.1,2544.6,0.51182145]
[1642930578501,1.1728,2545.2,2544.6,0.51182145]
[1642930578502,1.28525097,2544.7,2544.6,0.51182145]
[1642930579303,1.1728,2545.2,2544.6,0.51182145]
[1642930579507,1.22472,2545.2,2544.6,0.51182145]
[1642930579709,2.22854637,2545.1,2544.7,0.06665162]
[1642930579942,2.22854637,2545.1,2544.6,0.51182145]
[1642930579943,2.22854637,2545.1,2544.6,0.81182145]
[1642930580443,1.42526972,2544.9,2544.6,1.11182145]
[1642930580644,1.42526972,2544.9,2544.6,0.81182145]
[1642930580846,1.42526972,2544.9,2544.7,9.94183566]
[1642930581048,2.22854637,2544.8,2544.7,10.24183566]
[1642930581245,1.42526972,2544.9,2544.8,7.71328929]
[1642930582547,1.42526972,2544.9,2544.8,8.31328929]
[1642930582746,0.05192,2545.0,2544.8,7.71328929]
[1642930583788,1.2414695,2544.9,2544.8,7.71328929]
[1642930583988,0.05192,2545.0,2544.8,7.71328929]
[1642930584188,0.05192,2545.0,2544.8,8.31328929]
[1642930584487,4.4835,2545.1,2544.8,7.71328929]
[1642930585193,1.11520726,2545.0,2544.8,7.71328929]
[1642930587345,2.2286284,2544.9,2544.8,7.71328929]
[1642930589346,2.2286284,2544.9,2544.7,7.71468881]
[1642930589547,2.2286284,2544.9,2544.7,8.01468881]
[1642930589746,2.2286284,2544.9,2544.8,7.71468881]
[1642930589948,2.2286284,2544.9,2544.8,7.66468881]
[1642930591800,2.2286284,2544.9,2544.8,8.26468881]
[1642930592899,2.2286284,2544.9,2544.8,7.66468881]
[1642930593698,1.11520726,2545.0,2544.8,7.66468881]
[1642930594700,1.11520726,2545.0,2544.8,8.26468881]
[1642930594945,2.22862553,2544.9,2544.8,7.66468881]
[1642930595346,2.22862553,2544.9,2544.8,7.96468881]
[1642930595550,2.22862553,2544.9,2544.8,7.66468881]
[1642930595751,2.22862553,2544.9,2544.8,0.3]
[1642930595752,8.07862553,2544.9,2544.8,0.3]
[1642930596147,5.09999999,2544.7,2544.6,0.51182145]
[1642930597150,0.95191999,2544.7,2544.6,0.51182145]
[1642930597350,4.71639999,2544.7,2544.6,0.51182145]
[1642930597551,6.94502552,2544.7,2544.6,0.51182145]
[1642930604354,4.34502552,2544.7,2544.6,0.51182145]
[1642930604556,3.12862552,2544.7,2544.6,0.51182145]
[1642930605052,3.12862552,2544.7,2544.6,1.11182145]
[1642930606193,3.12862552,2544.7,2544.6,0.51182145]
[1642930610041,5.92862552,2544.7,2544.6,0.51182145]
[1642930610443,3.12862552,2544.7,2544.6,0.51182145]
[1642930611845,2.22862553,2544.7,2544.6,0.51182145]
[1642930612045,4.77862553,2544.7,2544.6,0.51182145]
[1642930612246,2.22862553,2544.7,2544.6,0.51182145]
[1642930613046,6.52862553,2544.7,2544.6,0.51182145]
[1642930613450,6.72506553,2544.7,2544.6,0.51182145]
[1642930613697,6.52862553,2544.7,2544.6,0.51182145]
[1642930615104,2.22862553,2544.7,2544.6,0.51182145]
[1642930615809,2.22862553,2544.7,2544.6,0.81182145]
[1642930616007,2.22862553,2544.7,2544.6,0.51182145]
[1642930616413,2.22862553,2544.8,2544.6,0.51182145]
[1642930618746,2.22862553,2544.8,2544.7,4.11339736]
[1642930618946,2.22862553,2544.8,2544.6,0.51182145]
[1642930619548,2.22862553,2544.8,2544.6,0.81182145]
[1642930619949,2.22862553,2544.8,2544.6,1.11182145]
[1642930621499,1.44139519,2545.0,2544.6,0.81182145]
[1642930622096,1.44139519,2545.0,2544.6,0.51182145]
[1642930622696,2.22862553,2544.9,2544.7,0.10033101]
[1642930622895,2.22862553,2544.9,2544.6,0.51182145]
[1642930623999,2.22862553,2544.9,2544.6,0.81182145]
[1642930624597,2.22862553,2544.9,2544.6,0.51182145]
[1642930625058,6.65,2544.6,2543.5,0.00263009]
[1642930625265,0.01241961,2543.8,2543.3,0.00263009]
[1642930625459,0.01241961,2543.8,2543.3,3.00263009]
[1642930625660,0.15679012,2543.7,2543.3,3.00263009]
[1642930625884,0.01230958,2543.4,2543.3,1.5]
[1642930626059,0.01230958,2543.4,2543.3,1.27373546]
[1642930626060,3.95181,2543.4,2543.3,1.27373546]
[1642930626257,5.11322382,2543.4,2543.3,0.88000684]
[1642930626660,5.4,2543.3,2542.6,1.39191027]
[1642930626857,1.18906733,2542.7,2542.6,1.39191027]
[1642930628995,1.18906733,2542.7,2542.6,1.99191027]
[1642930629395,1.19083,2543.2,2542.6,1.99191027]
[1642930630502,2.22995113,2543.1,2542.6,1.99191027]
[1642930631101,2.22995113,2543.1,2542.7,0.0927601]
[1642930631303,2.22995113,2543.1,2542.6,1.99191027]
[1642930631509,1.32528862,2543.0,2542.6,1.99191027]
[1642930631710,1.32528862,2543.0,2542.6,1.39191027]
[1642930631901,1.32528862,2543.0,2542.7,0.09072689]
[1642930632101,1.32528862,2543.0,2542.6,1.39191027]
[1642930633157,1.32528862,2543.0,2542.7,0.16624725]
[1642930633556,1.32528862,2543.0,2542.6,1.39191027]
[1642930634156,1.32528862,2543.0,2542.7,0.14699289]
[1642930634365,0.50473759,2542.9,2542.7,0.14699289]
[1642930634558,0.50473759,2542.9,2542.6,1.99191027]
[1642930635166,0.50473759,2542.9,2542.6,1.39191027]
[1642930635565,0.50473759,2542.9,2542.3,0.26149175]
[1642930635766,1.21272867,2542.8,2542.6,0.25]
[1642930635964,1.71746626,2542.8,2542.6,0.25]
[1642930636194,1.12228034,2542.4,2542.3,0.26149175]
[1642930636395,1.3747,2543.2,2542.6,2.24456068]
[1642930636594,1.40015316,2542.7,2542.6,2.24456068]
[1642930636794,1.80830347,2542.7,2542.6,2.24456068]
[1642930637397,1.75830347,2542.7,2542.6,2.24456068]
[1642930637996,1.75830347,2542.7,2542.6,2.14456068]
[1642930638501,1.75830347,2542.7,2542.6,1.71043068]
[1642930638999,2.83970347,2542.7,2542.6,1.71043068]
[1642930641361,1.049,2542.6,2542.0,0.1573]
[1642930641566,0.01289173,2542.1,2541.4,0.1573]
[1642930641763,0.01289173,2542.1,2541.4,0.1073]
[1642930641764,1.40849902,2541.9,2541.4,0.1073]
[1642930641965,1.2178,2541.8,2541.4,0.1073]
[1642930642168,4.6411,2541.7,2541.4,0.1073]
[1642930642362,14.8021,2541.7,2541.4,0.1073]
[1642930642563,14.8021,2541.7,2540.7,0.38227]
[1642930642564,0.1573,2541.6,2540.7,0.38227]
[1642930642765,0.1573,2541.6,2540.7,4.3617974]
[1642930642966,0.1573,2541.6,2540.7,0.38227]
[1642930642967,1.54691318,2541.5,2540.7,0.38227]
[1642930643166,1.12606506,2540.8,2540.7,0.38227]
[1642930643365,0.1574,2541.4,2540.7,0.38227]
[1642930643366,12.5627,2541.4,2540.7,0.38227]
[1642930644203,0.1574,2541.4,2540.7,0.38227]
[1642930644409,1.29718738,2541.3,2540.8,0.17367497]
[1642930644608,1.62875892,2541.3,2540.8,0.1574]
[1642930645408,0.33157154,2541.3,2540.9,0.14364207]
[1642930645612,0.33157154,2541.3,2540.9,0.14972542]
[1642930645809,0.33157154,2541.3,2540.8,0.1574]
[1642930646011,0.1574,2541.2,2540.8,0.1574]
[1642930646210,0.1574,2541.2,2540.8,0.14918266]
[1642930646211,0.62709854,2541.2,2540.8,0.14918266]
[1642930646411,1.21836348,2541.1,2540.7,0.33227]
[1642930646616,1.21836348,2541.1,2539.6,11.3438]
[1642930646617,0.01245611,2540.9,2539.7,0.1574]
[1642930646814,1.47085753,2540.7,2539.7,0.1574]
[1642930647010,0.1574,2540.6,2539.7,0.1574]
[1642930647209,1.09485589,2539.8,2539.7,0.1574]
[1642930647458,0.32381023,2539.8,2539.3,0.1574]
[1642930648050,0.32381023,2539.8,2539.3,4.07349734]
[1642930648449,0.9347,2540.0,2539.3,4.07349734]
[1642930648648,0.9347,2540.0,2539.3,3.63044197]
[1642930648848,11.8409,2540.6,2539.3,0.1574]
[1642930649049,11.8409,2540.6,2539.3,3.68145286]
[1642930649250,11.8409,2540.6,2539.4,0.09376104]
[1642930649451,1.19039915,2540.3,2539.3,3.71442315]
[1642930649651,1.29070767,2539.5,2539.3,0.1574]
[1642930649852,1.29070767,2539.5,2539.2,11.83009787]
[1642930650262,1.29070767,2539.5,2539.2,11.78009787]
[1642930650459,0.1575,2539.4,2539.2,11.78009787]
[1642930651194,6.65,2539.3,2538.7,0.1575]
[1642930651398,0.474,2539.6,2538.7,0.1575]
[1642930651399,1.46741596,2539.1,2538.7,0.1575]
[1642930651601,0.1575,2539.0,2538.7,0.1575]
[1642930651795,0.1575,2539.0,2538.0,7.48]
[1642930651796,6.2,2538.9,2538.0,7.48]
[1642930652001,6.2,2538.9,2537.9,2.40266778]
[1642930652002,0.1575,2538.8,2537.9,2.40266778]
[1642930652198,1.5351167,2538.0,2537.2,7.48]
[1642930652397,1.5351167,2538.0,2537.3,0.0576]
[1642930652601,6.8432,2538.8,2537.3,0.0576]
[1642930652602,6.8432,2538.8,2538.0,3.07023339]
[1642930652796,1.392,2538.8,2538.0,3.07023339]
[1642930652998,1.392,2538.8,2538.1,3.88861006]
[1642930653199,1.392,2538.8,2538.1,0.1575]
[1642930653200,1.2345,2538.8,2538.1,0.1575]
[1642930653601,1.18856589,2538.7,2538.1,0.1575]
[1642930653797,1.18856589,2538.7,2538.1,0.7575]
[1642930653997,1.18856589,2538.7,2538.1,0.4575]
[1642930654397,1.2345,2538.8,2538.1,0.1575]
[1642930654398,1.51924065,2538.3,2538.1,0.1575]
[1642930654600,1.51924065,2538.3,2538.0,3.07023339]
[1642930654849,0.1575,2538.2,2538.0,3.07023339]
[1642930655050,1.51924065,2538.3,2538.0,3.07023339]
[1642930655255,0.1575,2538.2,2538.0,3.07023339]
[1642930655452,1.51924065,2538.3,2538.0,3.07023339]
[1642930656053,1.51924065,2538.3,2538.1,0.09842415]
[1642930656254,1.51924065,2538.3,2537.3,0.04376861]
[1642930656255,3.0785208,2538.0,2537.3,0.04376861]
[1642930656457,2.08670584,2537.9,2537.3,0.04376861]
[1642930656661,2.08670584,2537.9,2537.2,0.04433703]
[1642930656662,10.05028062,2537.8,2537.2,0.04433703]
[1642930656854,10.05028062,2537.8,2536.6,0.04774757]
[1642930656855,0.0149539,2537.6,2536.6,0.04774757]
[1642930657056,0.1575,2537.5,2536.6,0.04774757]
[1642930657254,0.55207847,2537.5,2536.6,0.04774757]
[1642930657454,0.55207847,2537.5,2536.1,0.05058969]
[1642930657654,1.61737847,2537.4,2536.2,0.1575]
[1642930657858,0.55207847,2537.3,2536.2,0.16972523]
[1642930658053,0.55207847,2537.3,2536.3,0.04945284]
[1642930658054,0.39457847,2537.3,2536.3,0.04945284]
[1642930658254,1.53061646,2536.5,2536.4,0.1575]
[1642930658459,1.2228,2537.4,2536.5,2.29400557]
[1642930658460,1.23525352,2537.4,2536.5,2.29400557]
[1642930658698,0.19644,2537.2,2536.5,2.29400557]
[1642930658896,0.1575,2537.1,2536.6,0.04774757]
[1642930659496,1.2228,2537.4,2536.6,0.20524757]
[1642930659700,6.9928,2537.9,2536.6,0.20524757]
[1642930659901,6.9928,2537.9,2536.7,0.05424653]
[1642930660101,1.3607,2537.7,2536.8,0.0575]
[1642930660412,24.4758,2537.8,2536.9,0.0460423]
[1642930660608,4.8266,2538.7,2537.0,0.51642785]
[1642930660609,1.51138038,2538.5,2537.0,0.51642785]
[1642930660802,1.51138038,2538.5,2537.4,0.01285775]
[1642930661002,10.2728,2538.4,2537.4,0.01285775]
[1642930661204,10.2728,2538.4,2537.5,0.04263176]
[1642930661406,10.4303,2538.4,2537.5,0.04263176]
[1642930661802,10.4303,2538.4,2537.6,0.1575]
[1642930661803,10.2728,2538.4,2537.6,0.1575]
[1642930662343,10.2728,2538.4,2537.7,0.04149491]
[1642930662547,10.2728,2538.4,2537.8,0.1575]
[1642930662949,10.2728,2538.4,2537.9,0.04035807]
[1642930663346,10.2728,2538.4,2538.0,0.04495678]
[1642930663646,10.2728,2538.4,2537.9,3.6872424]
[1642930663845,10.2728,2538.4,2537.9,0.04035807]
[1642930664047,1.46452944,2538.3,2537.9,0.04035807]
[1642930664448,1.46452944,2538.3,2537.2,0.14956334]
[1642930664449,1.42646112,2537.8,2537.2,0.14956334]
[1642930664650,0.1575,2538.3,2537.2,0.14956334]
[1642930665054,0.1575,2538.3,2537.3,0.07465788]
[1642930665261,0.1575,2538.3,2537.4,0.1575]
[1642930665461,10.2728,2538.4,2537.4,0.6315]
[1642930665655,10.2728,2538.4,2537.5,4.46994641]
[1642930665855,0.1575,2538.6,2537.6,0.474]
[1642930666108,10.6686,2539.2,2537.8,0.07525082]
[1642930666301,0.1575,2539.5,2538.0,0.06844628]
[1642930666503,5.7115,2539.7,2538.1,0.474]
[1642930666700,1.12615051,2539.3,2538.2,3.94478116]
[1642930666903,1.12615051,2539.3,2538.3,0.474]
[1642930667100,0.1575,2539.2,2538.3,0.774]
[1642930667502,0.1575,2539.2,2538.4,0.02609795]
[1642930667702,1.18127072,2538.9,2538.4,0.02609795]
[1642930668006,1.18127072,2538.9,2538.3,1.3]
[1642930668200,0.1575,2538.8,2538.3,1.3]
[1642930668399,0.01241229,2539.4,2538.3,1.3]
[1642930668400,0.1575,2539.3,2538.4,3.58591887]
[1642930668601,0.1575,2539.3,2538.5,0.3]
[1642930668801,0.1575,2539.3,2538.3,0.3]
[1642930669003,0.1575,2539.3,2538.1,0.1575]
[1642930669004,0.02806599,2539.2,2538.1,0.1575]
[1642930669203,0.1575,2539.1,2538.0,1.6]
[1642930669401,0.1575,2539.1,2537.8,1.6575]
[1642930669402,0.01281013,2538.6,2537.8,1.6575]
[1642930669603,0.22362315,2538.6,2537.8,1.6575]
[1642930669850,1.3741318,2538.3,2537.8,1.6575]
[1642930670051,0.1575,2538.2,2537.8,1.5]
[1642930670453,0.19644,2539.2,2537.8,1.5]
[1642930670454,0.1575,2539.1,2537.8,1.5]
[1642930670661,0.19644,2539.0,2537.8,1.5]
[1642930670853,0.1575,2538.9,2537.8,1.5]
[1642930671256,0.1575,2538.9,2537.9,27.1350137]
[1642930671452,1.2319,2539.4,2537.9,4.6590137]
[1642930671453,0.1575,2539.3,2537.9,4.6590137]
[1642930671660,0.1575,2539.3,2538.5,1.5]
[1642930671854,0.1575,2539.3,2538.6,0.05891295]
[1642930672053,0.1575,2539.3,2538.5,1.5]
[1642930672054,1.35255379,2538.7,2538.5,1.5]
[1642930672255,0.1575,2538.6,2538.5,1.5]
[1642930673154,0.19457721,2539.3,2538.5,1.5]
[1642930673357,0.1575,2539.3,2538.6,0.05331265]
[1642930673614,0.01912484,2539.2,2538.5,2.05]
[1642930673806,1.2319,2539.4,2538.6,0.1575]
[1642930674005,0.138127,2539.7,2538.6,0.1575]
[1642930674208,0.04,2539.8,2538.8,0.01263392]
[1642930674510,0.04,2539.8,2539.1,0.01781967]
[1642930674707,0.04,2539.8,2539.3,0.03139997]
[1642930674911,0.0001,2539.8,2539.5,22.98218496]
[1642930675109,0.0001,2539.8,2539.7,22.95]
[1642930675308,0.0001,2539.8,2539.7,24.024]
[1642930675510,0.0001,2539.8,2539.7,25.024]
[1642930675809,0.1575,2540.6,2539.7,25.024]
[1642930675810,0.1575,2540.6,2539.8,4.7007]
[1642930676015,16.084,2540.7,2539.9,0.474]
[1642930676210,16.084,2540.7,2539.9,28.36878116]
[1642930676514,2.5,2540.8,2540.7,3.41169133]
[1642930676710,2.5,2540.8,2540.7,8.95445955]
[1642930677010,0.04,2540.9,2540.7,9.25445955]
[1642930677550,0.04,2540.9,2540.8,1.0]
[1642930677751,0.04,2540.9,2540.7,3.41169133]
[1642930677950,0.07685606,2540.9,2540.7,3.41169133]
[1642930678152,4.6074,2540.8,2540.7,3.41169133]
[1642930678350,4.9450878,2540.8,2540.7,3.41169133]
[1642930678562,1.4667021,2540.0,2539.7,0.1574]
[1642930678757,1.4667021,2540.0,2539.1,0.76059404]
[1642930678758,0.3376878,2540.0,2539.2,0.1574]
[1642930678956,0.1574,2540.5,2540.0,22.95936347]
[1642930679158,0.3376878,2540.8,2540.2,22.95]
[1642930679355,0.3376878,2540.8,2540.3,0.63604411]
[1642930679556,0.3376878,2540.8,2540.3,0.6314]
[1642930679860,0.3376878,2540.8,2540.4,22.99775073]
[1642930680060,8.78e-05,2540.8,2540.6,6.65]
[1642930680263,0.1974,2541.8,2540.9,22.95]
[1642930680264,0.0001,2541.4,2540.9,22.95]
[1642930680456,0.0001,2541.4,2541.0,0.6314]
[1642930680657,0.04,2541.8,2541.1,29.6]
[1642930680860,0.04,2541.8,2541.2,0.474]
[1642930681109,0.04,2541.8,2541.2,24.424]
[1642930681296,0.04,2541.8,2541.2,24.724]
[1642930681496,1.51744706,2541.5,2541.2,1.774]
[1642930681702,0.19389069,2541.4,2541.0,0.1574]
[1642930681913,0.19389069,2541.4,2540.8,0.474]
[1642930682101,1.39231166,2541.1,2540.8,0.474]
[1642930682697,0.0355981,2541.0,2540.8,0.474]
[1642930682900,1.39231166,2541.1,2540.8,0.474]
[1642930683098,1.39231166,2541.1,2540.9,0.01925328]
[1642930683706,1.14775905,2540.4,2539.8,0.474]
[1642930683901,0.05862088,2540.3,2539.8,0.474]
[1642930684301,1.14775905,2540.4,2539.8,0.474]
[1642930684965,1.14775905,2540.4,2538.8,0.98765143]
[1642930684966,1.43070582,2540.0,2539.1,0.474]
[1642930685161,1.43070582,2540.0,2538.9,0.1574]
[1642930685162,1.30869177,2539.5,2538.9,0.1574]
[1642930685362,0.7991,2540.0,2538.6,1.32264232]
[1642930685363,4.8276,2539.9,2538.7,0.1575]
[1642930685562,6.0408,2539.9,2538.7,0.1575]
[1642930685861,10.696,2539.8,2538.7,27.3872762]
[1642930686061,10.696,2539.8,2538.7,4.4372762]
[1642930686462,10.696,2539.8,2538.9,0.3015629]
[1642930686663,10.696,2539.8,2539.0,0.3015629]
[1642930686664,1.3335675,2539.2,2539.0,0.3015629]
[1642930686866,0.1575,2539.7,2539.0,0.3015629]
[1642930687667,0.08018992,2539.6,2539.0,0.3015629]
[1642930687866,1.15118391,2539.1,2539.0,0.3015629]
[1642930688067,1.30868391,2539.1,2539.0,0.3015629]
[1642930688264,3.95868391,2539.1,2539.0,0.3015629]
[1642930688707,1.30868391,2539.1,2539.0,0.3015629]
[1642930689109,0.1575,2539.1,2539.0,0.3015629]
[1642930689323,20.1177,2539.8,2539.0,0.3015629]
[1642930689324,0.1575,2539.7,2539.0,0.3015629]
[1642930689710,0.08029698,2539.6,2539.0,0.3015629]
[1642930689908,0.1575,2539.5,2539.0,0.3015629]
[1642930690113,1.1521139,2539.1,2539.0,0.3015629]
[1642930690312,3.8596139,2539.1,2539.0,0.3015629]
[1642930690712,3.8596139,2539.1,2538.9,0.3015629]
[1642930690913,1.45509799,2538.4,2538.3,1.0]
[1642930691311,1.18007319,2538.6,2538.5,2.91019597]
[1642930691617,0.1575,2538.6,2538.5,2.91019597]
[1642930691812,0.1575,2538.8,2538.5,2.91019597]
[1642930692011,0.1575,2538.8,2538.5,2.86019597]
[1642930692654,1.29261166,2538.6,2538.5,2.86019597]
[1642930693256,0.1575,2538.8,2538.5,2.86019597]
[1642930693454,7.0779,2538.9,2538.5,2.86019597]
[1642930693654,0.2230008,2538.8,2538.5,2.86019597]
[1642930693854,6.65,2538.7,2538.3,1.0]
[1642930694162,6.65,2538.7,2537.1,2.32001089]
[1642930694163,0.09509303,2538.5,2537.2,0.1575]
[1642930694356,1.37016193,2537.4,2537.3,3.3482899]
[1642930694556,1.37016193,2537.4,2537.1,1.0]
[1642930694557,0.1575,2538.4,2537.1,1.0]
[1642930694755,0.01296615,2537.9,2537.2,3.34849849]
[1642930694958,0.01296615,2537.9,2537.1,0.5147]
[1642930695157,0.1575,2537.8,2537.1,0.5147]
[1642930695358,0.1575,2538.0,2537.1,0.5147]
[1642930695557,1.39190425,2537.3,2537.1,0.5147]
[1642930695761,0.97,2537.3,2537.1,0.5147]
[1642930696417,0.1575,2538.1,2538.0,2.34664068]
[1642930696620,0.1575,2538.1,2536.5,2.45150557]
[1642930696621,1.59995932,2538.0,2536.5,2.45150557]
[1642930696821,1.10502805,2537.3,2536.6,3.34887979]
[1642930697222,1.1954,2537.8,2536.7,1.0]
[1642930697423,0.1575,2537.7,2536.8,0.1575]
[1642930697623,0.1575,2537.7,2536.8,0.1075]
[1642930697824,0.1575,2537.7,2536.7,0.1575]
[1642930698125,0.05584365,2537.6,2536.6,0.1575]
[1642930698323,1.1954,2537.8,2536.5,2.29400557]
[1642930698324,1.25077442,2536.9,2536.5,2.29400557]
[1642930698723,1.0,2536.6,2536.5,2.29400557]
[1642930700259,3.3,2536.6,2536.5,2.29400557]
[1642930700556,1.0,2536.6,2536.5,2.29400557]
[1642930700960,1.1575,2536.6,2536.5,2.29400557]
[1642930701360,1.0,2536.6,2536.5,2.29400557]
[1642930702363,1.1575,2536.6,2536.5,2.29400557]
[1642930704011,0.1575,2537.1,2536.6,6.65]
[1642930704212,1.1557,2537.4,2536.7,3.71898025]
[1642930704412,1.1557,2537.4,2537.0,1.06983334]
[1642930704812,1.1557,2537.4,2537.0,1.66983334]
[1642930705017,1.1557,2537.4,2537.1,3.64375703]
[1642930705217,1.1557,2537.4,2537.0,1.66983334]
[1642930705416,10.5282,2537.6,2537.0,1.66983334]
[1642930705615,10.3707,2537.6,2537.0,1.82733334]
[1642930705819,10.5282,2537.6,2537.0,1.66983334]
[1642930706417,10.5282,2537.6,2537.0,0.6]
[1642930706418,1.2385073,2537.4,2537.0,0.6]
[1642930706619,1.2385073,2537.4,2536.8,0.1575]
[1642930706818,1.43611758,2537.0,2536.8,0.1575]
[1642930707017,11.6901,2537.6,2536.8,0.1575]
[1642930707461,11.6901,2537.6,2537.0,1.06983334]
[1642930707660,11.6901,2537.6,2536.8,0.1575]
[1642930707962,1.12769563,2537.1,2536.8,0.1575]
[1642930708160,0.1575,2537.4,2536.6,0.1575]
[1642930708564,0.1575,2537.5,2537.0,1.06983334]
[1642930708762,11.6901,2537.6,2536.6,1.1575]
[1642930709160,1.53861993,2537.3,2536.6,1.1575]
[1642930709361,0.05738753,2537.2,2536.6,1.1575]
[1642930709569,1.53861993,2537.3,2536.6,0.1575]
[1642930709766,1.53861993,2537.3,2536.9,1.06983334]
[1642930709767,0.1575,2537.2,2536.9,1.06983334]
[1642930709968,11.5326,2537.6,2536.9,1.36983334]
[1642930709969,0.1575,2537.5,2536.9,1.36983334]
[1642930710166,0.1575,2537.5,2536.9,1.66983334]
[1642930710368,0.1575,2537.5,2536.9,0.6]
[1642930710670,0.1575,2537.5,2536.6,0.1575]
[1642930710868,0.12095619,2537.4,2536.6,0.1575]
[1642930711109,17.18048582,2537.6,2536.6,0.1575]
[1642930711110,1.28586599,2536.7,2536.6,0.1575]
[1642930711301,11.74165803,2537.6,2536.6,0.1575]
[1642930711302,0.1575,2537.5,2536.6,0.1575]
[1642930712305,1.12272557,2536.9,2536.6,0.1575]
[1642930712508,0.23587411,2536.8,2536.6,0.1575]
[1642930712703,0.23587411,2536.8,2536.5,2.29400557]
[1642930712904,0.1575,2536.8,2536.5,2.29400557]
[1642930713908,0.1575,2537.2,2536.5,2.29400557]
[1642930714105,1.3052,2537.3,2536.5,2.29400557]
[1642930714857,1.09201119,2537.0,2536.5,2.29400557]
[1642930715259,1.20554472,2536.6,2536.5,2.29400557]
[1642930716562,0.1575,2537.2,2536.5,2.29400557]
[1642930716761,0.01225309,2537.0,2536.6,3.57370322]
[1642930716962,0.1575,2536.9,2536.6,3.57370322]
[1642930717364,1.2353603,2536.7,2536.6,3.57370322]
[1642930718364,1.2353603,2536.7,2535.6,0.1575]
[1642930718365,1.3656873,2535.7,2535.6,0.1575]
[1642930718616,1.3656873,2535.7,2535.3,0.1577]
[1642930718812,0.01269062,2536.1,2535.2,4.90741068]
[1642930719015,29.4121,2536.4,2535.3,0.1577]
[1642930719016,1.154,2536.3,2535.3,0.1577]
[1642930719216,1.154,2536.3,2535.3,4.04527734]
[1642930720116,1.154,2536.3,2535.4,1.0]
[1642930720320,11.77,2536.4,2535.5,4.51927734]
[1642930720519,2.5,2535.9,2535.6,1.0]
[1642930720718,10.6257,2536.4,2535.6,1.0]
[1642930720719,10.6257,2536.4,2536.0,2.86045837]
[1642930720919,0.1577,2537.2,2536.1,4.24496983]
[1642930721117,0.1577,2537.2,2536.1,5.24496983]
[1642930721716,0.1577,2537.2,2536.1,1.1577]
[1642930721918,0.1577,2537.2,2536.1,1.1077]
[1642930722118,0.1577,2537.2,2536.1,0.1077]
[1642930722119,0.01234249,2536.7,2536.1,0.1077]
[1642930722355,1.13409862,2536.3,2536.1,0.1077]
[1642930722553,0.1577,2536.2,2536.1,0.1077]
[1642930722748,1.13409862,2536.3,2536.1,0.1077]
[1642930723453,0.1577,2536.2,2536.1,0.1077]
[1642930724051,0.1577,2536.6,2536.1,0.1077]
[1642930724253,0.1577,2536.9,2536.1,0.1077]
[1642930725062,1.18480813,2536.4,2536.1,0.1077]
[1642930725258,0.1577,2536.3,2536.1,0.1077]
[1642930726512,0.27069619,2536.3,2536.1,0.1077]
[1642930726712,0.1577,2536.3,2536.1,0.1077]
[1642930728819,0.474,2537.0,2536.1,0.1077]
[1642930728820,0.1577,2536.6,2536.1,0.1077]
[1642930729017,0.01297612,2537.3,2536.0,3.16045837]
[1642930729018,2.5,2536.7,2536.0,3.46045837]
[1642930729515,2.5,2536.1,2536.0,3.46045837]
[1642930729719,2.5,2536.1,2536.0,2.86045837]
[1642930729955,1.40935546,2536.4,2536.0,2.86045837]
[1642930731355,1.40935546,2536.4,2536.0,2.81045837]
[1642930732962,0.1577,2536.4,2536.0,2.81045837]
[1642930733360,0.1577,2536.4,2536.0,2.81785837]
[1642930734005,1.22460574,2536.3,2536.0,2.81785837]
[1642930734604,1.19117007,2536.3,2536.0,2.81785837]
[1642930735207,0.1577,2536.2,2536.0,2.81785837]
[1642930736209,6.84644,2536.1,2536.0,2.81785837]
[1642930736410,9.50414,2536.1,2536.0,2.81785837]
[1642930737358,9.50414,2536.1,2536.0,0.93775837]
[1642930737560,0.00737017,2536.0,2534.8,0.16029212]
[1642930737761,0.00737017,2536.0,2534.8,0.1577]
[1642930737762,0.01208539,2535.5,2534.8,0.1577]
[1642930737963,0.1577,2535.4,2534.8,0.1577]
[1642930738166,0.01208539,2535.5,2535.4,0.4731]
[1642930738362,0.36622539,2535.5,2535.4,0.4731]
[1642930738760,6.1580924,2535.5,2535.4,0.4731]
[1642930738959,5.21622539,2535.5,2535.4,0.0001]
[1642930739359,0.1577,2535.5,2535.4,0.0001]
[1642930739561,1.68293842,2535.5,2535.4,0.0001]
[1642930739765,5.99063842,2535.5,2535.4,0.0001]
[1642930740363,0.62900505,2535.5,2535.4,1.32011089]
[1642930740565,5.62900505,2535.5,2535.4,0.0001]
[1642930740768,5.82619505,2535.5,2535.4,0.0001]
[1642930741310,1.52557803,2534.6,2534.5,3.1024319]
[1642930741513,6.65,2535.4,2533.9,1.91739625]
[1642930741514,13.6543,2535.3,2533.9,1.32001089]
[1642930741711,13.6543,2535.3,2534.0,1.92001089]
[1642930741910,3.759,2535.2,2534.1,1.32001089]
[1642930742110,3.759,2535.2,2534.1,1.81717089]
[1642930742309,3.759,2535.2,2534.6,1.06983334]
[1642930742610,4.9885679,2535.2,2534.6,1.06983334]
[1642930742809,3.759,2535.2,2534.6,1.06983334]
[1642930743211,9.8831,2535.3,2534.7,3.84267102]
[1642930743424,10.2372,2535.7,2534.9,0.0125913]
[1642930743618,10.2372,2535.7,2535.0,0.20083004]
[1642930743822,10.2372,2535.7,2535.1,0.1077]
[1642930744017,10.2372,2535.7,2535.2,0.474]
[1642930744218,9.9624,2536.2,2535.3,3.98225202]
[1642930744422,2.5,2536.0,2535.3,4.03135376]
[1642930744618,2.5,2536.0,2535.4,1.3]
[1642930744856,2.5,2536.1,2535.4,1.49716]
[1642930745058,2.5,2536.1,2535.4,0.49716]
[1642930745258,1.212,2536.1,2535.4,0.49716]
[1642930745456,2.5,2535.9,2535.4,0.49716]
[1642930745658,2.5,2535.9,2535.5,3.82455202]
[1642930745857,2.5,2535.9,2535.6,0.35486]
[1642930746060,2.5,2535.9,2535.6,0.65486]
[1642930746461,2.5,2535.9,2535.6,0.49716]
[1642930746661,2.5,2535.9,2535.6,0.19716]
[1642930746861,2.5,2535.9,2535.6,3.92665736]
[1642930747068,2.5,2535.9,2535.7,1.0]
[1642930747262,2.5,2535.9,2535.5,0.7577]
[1642930747461,2.5,2535.9,2535.5,0.1577]